fUST/lending_fUST_20241030
["ID","MTS","AMOUNT","RATE_DAILY","PERIOD"]
[341037773,1730299845949,-150.0,0.000331,2]
[341037774,1730299845959,-393.0,0.00033151,2]
[341037775,1730299845969,-150.112233,0.000332,10]
[341037776,1730299845980,-1476.22,0.00033287,3]
[341037777,1730299845989,-500.0,0.00033287,5]
[341037778,1730299846000,-1610.14002152,0.00033349,2]
[341037779,1730299846010,-163.754,0.0003338,15]
[341037780,1730299846020,-188.830606,0.00033396,2]
[341037781,1730299846029,-1476.22,0.00033561,3]
[341037782,1730299846039,-494.75,0.00033561,5]
[341037783,1730299846048,-163.416,0.0003358,2]
[341037784,1730299846058,-330.64173,0.0003364,2]
[341037785,1730299846067,-151.0,0.00033699,120]
[341037786,1730299846077,-150.112233,0.000338,15]
[341037787,1730299846087,-1476.22,0.00033835,3]
[341037788,1730299846096,-519.42355712,0.000339,120]
[341037789,1730299846106,-2340.8305189,0.00033901,2]
[341037790,1730299846116,-330.64173,0.0003406,2]
[341037791,1730299846127,-1476.22,0.00034109,3]
[341037792,1730299846139,-181.486,0.0003423,38]
[341037793,1730299846149,-14810.24195622,0.00034327,30]
[341037794,1730299846159,-516.38402233,0.00034327,90]
[341037795,1730299846168,-8653.43866969,0.00034327,120]
[341037796,1730299846178,-5667.03395475,0.00034327,10]
[341037797,1730299846188,-501.56857057,0.00034329,5]
[341037798,1730299846197,-500.0,0.00034329,5]
[341037799,1730299846207,-502.53993674,0.00034329,5]
[341037800,1730299846216,-502.58706338,0.00034329,5]
[341037801,1730299846228,-507.03875226,0.00034329,5]
[341037802,1730299846240,-500.0,0.00034329,5]
[341037803,1730299846250,-502.07708319,0.00034329,5]
[341037804,1730299846261,-502.5763128,0.00034329,5]
[341037805,1730299846270,-404.54251095,0.00034329,5]
[341037806,1730299846280,-500.0,0.00034329,5]
[341037807,1730299846290,-500.0,0.00034329,5]
[341037808,1730299846301,-500.0,0.00034329,5]
[341037809,1730299846310,-5000.0,0.00034329,2]
[341037810,1730299846319,-265.05,0.00034329,5]
[341037811,1730299846329,-500.0,0.00034329,5]
[341037812,1730299846338,-167.28,0.00034329,5]
[341037813,1730299846348,-500.0,0.00034329,5]
[341037814,1730299846360,-500.0,0.00034329,5]
[341037815,1730299846369,-500.0,0.00034329,5]
[341037816,1730299846378,-454.85,0.00034329,5]
[341037817,1730299846387,-500.0,0.00034329,5]
[341037818,1730299846396,-598.83,0.00034329,5]
[341037819,1730299846406,-500.0,0.00034329,5]
[341037820,1730299846416,-545.77,0.00034329,5]
[341037821,1730299846425,-500.0,0.00034329,5]
[341037822,1730299846435,-500.0,0.00034329,5]
[341037823,1730299846444,-408.55,0.00034329,5]
[341037824,1730299846454,-500.0,0.00034329,5]
[341037825,1730299846464,-500.0,0.00034329,5]
[341037826,1730299846475,-415.25689853,0.00034373,5]
[341037827,1730299846485,-501.28117775,0.00034373,5]
[341037828,1730299846494,-500.0,0.00034373,5]
[341037829,1730299846503,-160.09861223,0.00034373,5]
[341037830,1730299846513,-500.0,0.00034373,5]
[341037831,1730299846522,-500.0,0.00034373,5]
[341037832,1730299846531,-500.0,0.00034373,5]
[341037833,1730299846540,-500.0,0.00034373,5]
[341037834,1730299846550,-501.65477846,0.00034373,5]
[341037835,1730299846560,-1476.22,0.00034383,3]
[341037836,1730299846569,-150.112233,0.000344,11]
[341037837,1730299846579,-330.64173,0.00034481,2]
[341037838,1730299846591,-393.0,0.00034521,2]
[341037839,1730299846600,-500.0,0.00034603,5]
[341037840,1730299846610,-500.0,0.00034603,5]
[341037841,1730299846622,-463.15,0.00034603,5]
[341037842,1730299846632,-500.0,0.00034603,5]
[341037843,1730299846644,-500.0,0.00034603,5]
[341037844,1730299846654,-500.0,0.00034603,5]
[341037845,1730299846666,-500.0,0.00034603,5]
[341037846,1730299846675,-500.0,0.00034603,5]
[341037847,1730299846684,-500.0,0.00034603,5]
[341037848,1730299846693,-453.59,0.00034603,5]
[341037849,1730299846704,-580.66,0.00034603,5]
[341037850,1730299846716,-300.58638418,0.00034603,5]
[341037851,1730299846728,-500.0,0.00034603,5]
[341037852,1730299846737,-1610.14002152,0.00034608,2]
[341037853,1730299846746,-1476.22,0.00034657,3]
[341037854,1730299846757,-916.34603555,0.00034849,120]
[341037855,1730299846767,-500.0,0.00034876,5]
[341037856,1730299846777,-500.0,0.00034876,5]
[341037857,1730299846786,-500.0,0.00034876,5]
[341037858,1730299846796,-315.70862463,0.00034876,5]
[341037859,1730299846806,-244.69,0.00034876,5]
[341037860,1730299846815,-500.0,0.00034876,5]
[341037861,1730299846826,-500.0,0.00034877,5]
[341037862,1730299846836,-500.0,0.00034877,5]
[341037863,1730299846846,-500.0,0.00034877,5]
[341037864,1730299846860,-3000.0,0.0003488,2]
[341037865,1730299846870,-330.64173,0.00034901,2]
[341037866,1730299846882,-1476.22,0.00034931,3]
[341037867,1730299846893,-151.0,0.00034932,120]
[341037868,1730299846904,-150.112233,0.00035,12]
[341037869,1730299846914,-4998.86022172,0.00035,2]
[341037870,1730299846923,-150.112233,0.00035,11]
[341037871,1730299846935,-2340.8305189,0.00035025,2]
[341037872,1730299846946,-603.91,0.0003515,5]
[341037873,1730299846956,-500.0,0.0003515,5]
[341037874,1730299846966,-237.50137086,0.0003515,5]
[341037875,1730299846977,-383.92,0.0003515,5]
[341037876,1730299846986,-468.87,0.00035151,5]
[341037877,1730299846995,-155.58,0.00035151,5]
[341037878,1730299847004,-500.0,0.00035151,5]
[341037879,1730299847013,-1476.22,0.00035205,3]
[341037880,1730299847023,-150.112233,0.000353,16]
[341037881,1730299847032,-330.64173,0.00035322,2]
[341037882,1730299847041,-500.0,0.00035424,5]
[341037883,1730299847052,-500.0,0.00035425,5]
[341037884,1730299847062,-163.354,0.0003545,120]
[341037885,1730299847071,-1000.0,0.00035452,5]
[341037886,1730299847081,-1135.0,0.00035462,30]
[341037887,1730299847091,-1329.362,0.00035462,30]
[341037888,1730299847101,-1476.22,0.00035479,3]
[341037889,1730299847111,-1000.0,0.00035479,5]
[341037890,1730299847120,-1000.0,0.00035479,5]
[341037891,1730299847131,-150.112233,0.000356,15]
[341037892,1730299847143,-150.112233,0.000356,19]
[341037893,1730299847153,-477.25810928,0.00035616,7]
[341037894,1730299847162,-500.0,0.00035698,5]
[341037895,1730299847172,-500.0,0.00035699,5]
[341037896,1730299847181,-1476.22,0.00035753,3]
[341037897,1730299847191,-1610.14002152,0.00035866,2]
[341037898,1730299847201,-328.34652,0.000359,18]
[341037899,1730299847210,-150.112233,0.000359,11]
[341037900,1730299847220,-150.0,0.00035914,2]
[341037901,1730299847230,-528.0,0.00035914,2]
[341037902,1730299847241,-1131.421,0.00035914,2]
[341037903,1730299847250,-705.751,0.00035914,2]
[341037904,1730299847259,-150.0,0.00035914,2]
[341037905,1730299847269,-246.43032239,0.00035972,5]
[341037906,1730299847278,-500.0,0.00035973,5]
[341037907,1730299847288,-305.08,0.00036,120]
[341037908,1730299847297,-500.0,0.00036,30]
[341037909,1730299847306,-470591.034701,0.00036,2]
[341037910,1730299847316,-1476.22,0.00036027,3]
[341037911,1730299847325,-2340.8305189,0.00036149,2]
[341037912,1730299847335,-151.0,0.00036164,120]
[341037913,1730299847344,-1086.98257057,0.00036169,5]
[341037914,1730299847354,-1000.0,0.00036169,5]
[341037915,1730299847364,-1000.0,0.00036169,5]
[341037916,1730299847374,-150.112233,0.000362,18]
[341037917,1730299847383,-150.112233,0.000362,20]
[341037918,1730299847393,-394.0,0.00036247,2]
[341037919,1730299847403,-500.0,0.00036247,5]
[341037920,1730299847413,-1476.440796,0.00036301,3]
[341037921,1730299847424,-159.670645,0.00036339,2]
[341037922,1730299847434,-185.58,0.000364,7]
[341037923,1730299847445,-150.112233,0.000365,10]
[341037924,1730299847454,-338.59223936,0.00036518,2]
[341037925,1730299847465,-500.0,0.00036518,5]
[341037926,1730299847474,-500.0,0.00036518,5]
[341037927,1730299847484,-500.0,0.00036518,5]
[341037928,1730299847493,-286.51432523,0.00036518,5]
[341037929,1730299847503,-500.0,0.00036518,5]
[341037930,1730299847512,-500.0,0.00036518,5]
[341037931,1730299847521,-504.97924414,0.00036518,5]
[341037932,1730299847531,-503.23938775,0.00036518,5]
[341037933,1730299847540,-502.09697911,0.00036518,5]
[341037934,1730299847549,-501.60043827,0.00036518,5]
[341037935,1730299847559,-505.58231885,0.00036518,5]
[341037936,1730299847568,-520.95312351,0.00036518,5]
[341037937,1730299847578,-501.76867897,0.00036518,5]
[341037938,1730299847587,-500.0,0.00036518,5]
[341037939,1730299847596,-504.74211134,0.00036518,5]
[341037940,1730299847605,-503.34910823,0.00036518,5]
[341037941,1730299847614,-238.49839345,0.00036518,5]
[341037942,1730299847625,-500.0,0.00036518,5]
[341037943,1730299847638,-500.0,0.00036518,5]
[341037944,1730299847647,-500.0,0.00036518,5]
[341037945,1730299847658,-500.0,0.00036521,5]
[341037946,1730299847667,-521.59668114,0.00036522,5]
[341037947,1730299847677,-508.70349571,0.00036522,5]
[341037948,1730299847687,-17963.73055869,0.00036523,3]
[341037949,1730299847696,-2000.0,0.000366,30]
[341037950,1730299847706,-917.24575362,0.00036712,120]
[341037951,1730299847715,-1000.0,0.00036771,120]
[341037952,1730299847726,-500.0,0.00036792,5]
[341037953,1730299847735,-500.0,0.00036792,5]
[341037954,1730299847744,-500.0,0.00036792,5]
[341037955,1730299847754,-500.0,0.00036792,5]
[341037956,1730299847763,-500.0,0.00036792,5]
[341037957,1730299847773,-500.0,0.00036795,2]
[341037958,1730299847782,-500.0,0.00036795,5]
[341037959,1730299847792,-150.112233,0.000368,16]
[341037960,1730299847801,-150.112233,0.000368,19]
[341037961,1730299847810,-170.19692916,0.00036822,2]
[341037962,1730299847820,-18010.79414603,0.00037025,2]
[341037963,1730299847830,-1000.0,0.00037045,120]
[341037964,1730299847839,-500.0,0.00037066,5]
[341037965,1730299847849,-500.0,0.00037066,5]
[341037966,1730299847862,-385.14014511,0.00037066,5]
[341037967,1730299847872,-500.0,0.00037066,5]
[341037968,1730299847881,-500.0,0.00037069,5]
[341037969,1730299847890,-1431.96154118,0.00037076,57]
[341037970,1730299847900,-9052.99144405,0.00037076,58]
[341037971,1730299847910,-5000.0,0.00037076,58]
[341037972,1730299847919,-5000.0,0.00037076,61]
[341037973,1730299847930,-5000.0,0.00037076,59]
[341037974,1730299847940,-150.112233,0.000371,17]
[341037975,1730299847949,-600.0,0.00037124,2]
[341037976,1730299848046,-1610.14002152,0.00037125,2]
[341037977,1730299848057,-42143.07576969,0.00037125,2]
[341037978,1730299848066,-203652.49414491,0.00037125,2]
[341037979,1730299848077,-165.50744148,0.0003724,21]
[341037980,1730299848086,-2340.8305189,0.00037273,2]
[341037981,1730299848095,-580.28447736,0.000373,14]
[341037982,1730299848105,-1000.0,0.000373,2]
[341037983,1730299848114,-1000.0,0.00037319,120]
[341037984,1730299848124,-500.0,0.00037339,7]
[341037985,1730299848134,-500.0,0.0003734,5]
[341037986,1730299848143,-500.0,0.0003734,5]
[341037987,1730299848153,-508.03,0.0003734,5]
[341037988,1730299848163,-500.0,0.00037343,5]
[341037989,1730299848172,-500.0,0.00037373,5]
[341037990,1730299848182,-432.83863454,0.00037373,5]
[341037991,1730299848192,-500.0,0.00037373,5]
[341037992,1730299848202,-3455.35733619,0.0003738,48]
[341037993,1730299848211,-151.0,0.00037397,120]
[341037994,1730299848220,-55555.0,0.000374,3]
[341037995,1730299848231,-150.112233,0.000374,15]
[341037996,1730299848242,-150.112233,0.000374,14]
[341037997,1730299848251,-206.11999901,0.000374,120]
[341037998,1730299848260,-15005.24085567,0.0003748,30]
[341037999,1730299848270,-150.01,0.00037499,2]
[341038000,1730299848280,-6227.32683703,0.00037499,2]
[341038001,1730299848290,-6677019.60910765,0.000375,60]
[341038002,1730299848412,-7513.82669778,0.000375,60]
[341038003,1730299848537,-491.231881,0.00028369,2]
[341038004,1730299848546,-500.0,0.00029973,2]
[341038005,1730299848556,-150.0,0.00032914,2]
[341038006,1730299848565,-1000.0,0.00035452,2]
[341038007,1730299848575,-150.0,0.00035914,2]
[341038008,1730299848584,-266499.93966801,0.000375,60]
[341040643,1730300244313,166.948813,0.00013973,2]
[341040647,1730300560159,1328.94,0.0002,2]
[341040648,1730300744719,159.602067,0.00013973,2]
[341040654,1730300811156,-166.948813,0.00020447,2]
[341040655,1730300811182,-174.1152227,0.0002358,2]
[341040656,1730300945186,-71.5007183,0.0002358,2]
[341040657,1730300945207,-4003.40507011,0.00026574,2]
[341040658,1730300945232,-166.948813,0.00026921,2]
[341040659,1730300945257,-159.602067,0.00027641,2]
[341040660,1730300945279,-180.0000009,0.00028852,2]
[341040661,1730300945303,-500.0,0.00029998,5]
[341040662,1730300945326,-244.34466568,0.0003,3]
[341040663,1730300945348,-400.0,0.00030048,2]
[341040664,1730300945372,-300.0,0.00030049,2]
[341040665,1730300945394,-239.56,0.0003005,5]
[341040666,1730300945416,-99.73829374,0.0003005,5]
[341040667,1730300946112,-400.26170626,0.0003005,5]
[341040668,1730300946134,-500.0,0.00030272,5]
[341040669,1730300946155,-500.0,0.00030324,5]
[341040670,1730300946180,-500.0,0.00030546,5]
[341040671,1730300946201,-500.0,0.00030598,5]
[341040672,1730300946228,-4273.9587467,0.00030653,2]
[341040673,1730300946251,-500.0,0.0003082,5]
[341040674,1730300946272,-500.0,0.00030872,5]
[341040675,1730300946293,-500.0,0.00031094,5]
[341040676,1730300946315,-500.0,0.00031146,5]
[341040677,1730300946339,-500.0,0.00031368,5]
[341040678,1730300946365,-500.0,0.0003142,5]
[341040679,1730300946387,-500.0,0.00031642,5]
[341040680,1730300946408,-500.0,0.00031694,5]
[341040681,1730300946429,-500.0,0.00031916,5]
[341040682,1730300946451,-500.0,0.00031968,5]
[341040683,1730300946473,-500.0,0.0003219,5]
[341040684,1730300946495,-417.3860568,0.00032242,5]
[341040685,1730300946516,-500.0,0.00032464,5]
[341040686,1730300946539,-500.0,0.00032738,5]
[341040687,1730300946560,-205.317723,0.00032877,120]
[341040688,1730300946581,-500.0,0.00032912,2]
[341040689,1730300946602,-500.0,0.00033012,5]
[341040690,1730300946624,-181.487,0.00033029,34]
[341040691,1730300946645,-270.0,0.00033053,2]
[341040692,1730300947345,165.0,0.00033,2]
[341040693,1730300956036,245.615941,0.00033256,2]
[341040694,1730300969108,-339.89880584,0.00033395,5]
[341040695,1730300969131,-204.86,0.00033395,5]
[341040696,1730300969152,-483.89,0.00033395,5]
[341040697,1730300969176,-176.94036431,0.00033395,5]
[341040698,1730300969196,-128.94952721,0.00033395,5]
[341040699,1730300970082,-371.05047279,0.00033395,5]
[341040700,1730300970102,-505.64006121,0.00033395,5]
[341040701,1730300970128,-166.948813,0.00033396,2]
[341040702,1730300970151,-150.0,0.00033664,2]
[341040703,1730300970173,-282.1335661,0.00033664,2]
[341040759,1730301032371,-454.04211012,0.00033395,5]
[341040761,1730301032381,-1699.15161252,0.00033395,60]
[341040763,1730301032390,-245.8664339,0.00033664,2]
[341040765,1730301032400,-512.05,0.00033669,5]
[341040767,1730301032409,-500.0,0.00034133,5]
[341040769,1730301032424,-500.0,0.00034133,5]
[341040771,1730301032433,-500.0,0.00034282,7]
[341040773,1730301032443,-501.98599992,0.00034329,5]
[341040775,1730301032452,-260.9890752,0.00034329,5]
[341040777,1730301032461,-500.0,0.00034329,5]
[341040779,1730301032471,-294.14177219,0.00034355,7]
[341040781,1730301032480,-502.85738832,0.00034372,5]
[341040783,1730301032489,-305.83124494,0.00034372,5]
[341040785,1730301032498,-9.08969433,0.00034372,5]
[341040831,1730301040513,-2000.0,0.00033644,120]
[341040832,1730301040523,-490.91030567,0.00034372,5]
[341040833,1730301040534,-557.0,0.00034372,2]
[341040834,1730301040544,-150.0,0.00034431,14]
[341040835,1730301040554,-150.0,0.00034431,14]
[341040836,1730301040564,-180.379999,0.00034431,14]
[341040837,1730301040573,-469.23,0.00034646,5]
[341040838,1730301040583,-1274.0,0.00035404,30]
[341040839,1730301040592,-500.0,0.00035652,12]
[341040840,1730301040602,-294.0,0.0003589,2]
[341040841,1730301040611,-500.0,0.00035999,15]
[341040842,1730301040621,-500.0,0.00035999,15]
[341040843,1730301040631,-234.85726642,0.00035999,7]
[341040844,1730301040640,-518.56788018,0.00035999,15]
[341040845,1730301040650,-500.0,0.00035999,15]
[341040846,1730301040660,-302.05517427,0.00035999,15]
[341040847,1730301040670,-5825.49937447,0.00036,60]
[341040848,1730301040685,-1408.15436948,0.00036,60]
[341040851,1730301043624,-1168.0,0.00035734,30]
[341040852,1730301043634,-13371.68260053,0.00036,60]
[341040853,1730301043644,-600.0,0.00036,2]
[341040854,1730301043653,-294.0,0.00036,2]
[341040855,1730301043663,-164.398,0.0003619,60]
[341040856,1730301043675,-500.0,0.0003623,5]
[341040857,1730301043685,-500.0,0.0003623,5]
[341040858,1730301043694,-604.63380239,0.00036375,2]
[341040859,1730301043704,-557.0,0.00036499,2]
[341040860,1730301043713,-500.0,0.000365,120]
[341040861,1730301043723,-500.0,0.000365,120]
[341040862,1730301043732,-500.0,0.000365,120]
[341040863,1730301043742,-500.0,0.000365,120]
[341040864,1730301043751,-500.0,0.000365,120]
[341040865,1730301043761,-500.0,0.000365,120]
[341040866,1730301043770,-500.0,0.000365,120]
[341040867,1730301043780,-500.0,0.000365,120]
[341040868,1730301043790,-635.91,0.000365,120]
[341040869,1730301043800,-612.54875245,0.000365,14]
[341040870,1730301043809,-150.112235,0.000366,16]
[341040871,1730301043819,-368.019,0.00036664,2]
[341040872,1730301043829,-150.112233,0.000369,14]
[341040873,1730301043839,-500.0,0.00037022,17]
[341040874,1730301043848,-557.0,0.00037023,2]
[341040875,1730301043858,-557.0,0.00037024,2]
[341040876,1730301043867,-557.0,0.00037024,2]
[341040877,1730301043877,-557.0,0.00037024,2]
[341040878,1730301043886,-1000.0,0.00037024,120]
[341040879,1730301043896,-150.112233,0.000371,15]
[341040880,1730301043905,-8752.92418851,0.00037184,2]
[341040881,1730301043915,-165.50744147,0.0003724,21]
[341040882,1730301043926,-1000.0,0.00037298,120]
[341040883,1730301043936,-150.112233,0.000373,18]
[341040884,1730301043945,-164.383,0.00037397,120]
[341040885,1730301043955,-294.0,0.00037397,2]
[341040886,1730301043965,-643.1753951,0.00037399,2]
[341040887,1730301043974,-178.60615518,0.00037399,15]
[341040888,1730301043983,-430.08592604,0.00037399,15]
[341040889,1730301044004,-500.0,0.00037399,15]
[341040890,1730301044015,-520.09993958,0.00037399,15]
[341040891,1730301044025,-500.0,0.00037399,15]
[341040892,1730301044035,-500.0,0.00037399,15]
[341040893,1730301044044,-500.0,0.00037399,15]
[341040894,1730301044054,-500.0,0.00037399,15]
[341040895,1730301044065,-500.0,0.00037399,15]
[341040896,1730301044075,-29142.95921894,0.000374,3]
[341040897,1730301044085,-500.0,0.00037473,5]
[341040898,1730301044096,-500.0,0.00037473,5]
[341040899,1730301044107,-500.0,0.00037473,5]
[341040900,1730301044117,-500.0,0.00037473,5]
[341040901,1730301044127,-508.02340623,0.00037473,5]
[341040902,1730301044137,-4143.29,0.00037489,10]
[341040903,1730301044149,-3895.03,0.00037489,10]
[341040904,1730301044158,-3245.86,0.00037489,10]
[341040905,1730301044168,-150.01,0.00037499,2]
[341040906,1730301044180,-172.36469458,0.00037499,2]
[341040907,1730301044190,-502.30269053,0.00037499,7]
[341040908,1730301044200,-600.0,0.00037499,2]
[341040909,1730301044209,-557.0,0.00037499,2]
[341040910,1730301044218,-557.0,0.00037499,2]
[341040911,1730301044231,-557.0,0.00037499,2]
[341040912,1730301044240,-557.0,0.00037499,2]
[341040913,1730301044250,-557.0,0.00037499,2]
[341040914,1730301044259,-557.0,0.00037499,2]
[341040915,1730301044268,-557.0,0.00037499,2]
[341040916,1730301044278,-557.0,0.00037499,2]
[341040917,1730301044287,-557.0,0.00037499,2]
[341040918,1730301044297,-557.0,0.00037499,2]
[341040919,1730301044307,-557.0,0.00037499,2]
[341040920,1730301044316,-557.0,0.00037499,2]
[341040921,1730301044326,-557.0,0.00037499,2]
[341040922,1730301044335,-557.0,0.00037499,2]
[341040923,1730301044346,-557.0,0.00037499,2]
[341040924,1730301044356,-557.0,0.00037499,2]
[341040925,1730301044373,-557.0,0.00037499,2]
[341040926,1730301044387,-557.13348394,0.00037499,2]
[341040927,1730301044401,-119727.8282646,0.000375,60]
[341041071,1730301046519,-1118.1,0.00035404,30]
[341041073,1730301046530,-282883.98055409,0.000375,60]
[341041076,1730301046543,-200.0,0.000375,112]
[341041078,1730301046555,-187.93,0.000375,30]
[341041081,1730301046567,-1354.02,0.000375,30]
[341041083,1730301046578,-1124.21,0.000375,30]
[341041085,1730301046589,-214.24,0.000375,30]
[341041087,1730301046601,-643.17539509,0.00037524,2]
[341041090,1730301046612,-1016.47279766,0.00037572,120]
[341041092,1730301046628,-150.0,0.00037592,120]
[341041094,1730301046639,-150.112233,0.000376,10]
[341041097,1730301046651,-643.17539509,0.0003765,2]
[341041099,1730301046663,-150.112233,0.000377,11]
[341041101,1730301046673,-643.17539509,0.00037775,2]
[341041103,1730301046687,-150.112233,0.000378,13]
[341041106,1730301046698,-391268.27470468,0.000379,120]
[341041108,1730301046710,-4073.0,0.000379,30]
[341041110,1730301046722,-643.17539509,0.000379,2]
[341041113,1730301046733,-10000.0,0.00038,30]
[341041115,1730301046746,-500.0,0.00038,120]
[341041117,1730301046758,-275.0,0.00038,30]
[341041119,1730301046770,-20000.0,0.00038,30]
[341041122,1730301046782,-674.87972865,0.00038,10]
[341041124,1730301046793,-150.112233,0.00038,12]
[341041126,1730301046804,-184.0,0.00038,2]
[341041128,1730301046816,-500.0,0.00038062,5]
[341041130,1730301046827,-500.0,0.00038134,2]
[341041133,1730301046840,-500.0,0.00038134,5]
[341041135,1730301046853,-150.112233,0.000382,12]
[341041137,1730301046864,-2000.0,0.000383,30]
[341041140,1730301046875,-500.0,0.00038392,22]
[341041142,1730301046887,-500.0,0.000384,120]
[341041144,1730301046899,-150.112233,0.000385,20]
[341041146,1730301046910,-151.0,0.0003863,120]
[341041149,1730301046922,-500.0,0.00038673,5]
[341041151,1730301046936,-389385.39029088,0.000387,120]
[341041153,1730301046947,-185.34,0.000388,31]
[341041155,1730301046959,-185.34,0.000388,31]
[341041157,1730301046969,-185.34,0.000388,31]
[341041159,1730301046979,-185.34,0.000388,31]
[341041161,1730301046989,-4834.58874686,0.0003888,120]
[341041164,1730301046999,-240.171299,0.000389,15]
[341041166,1730301047011,-150.0,0.00038913,120]
[341041168,1730301047022,-150.0,0.00038914,2]
[341041170,1730301047033,-94300.13869482,0.00039,30]
[341041172,1730301047044,-328.02916627,0.00039,3]
[341041174,1730301047054,-500.0,0.00039,120]
[341041177,1730301047072,-10000.0,0.00039,30]
[341041179,1730301047083,-56000.0,0.00039,120]
[341041181,1730301047096,-92348.0,0.00039,30]
[341041183,1730301047107,-151.0,0.00039,7]
[341041186,1730301047119,-151.0,0.00039,7]
[341041188,1730301047131,-500.0,0.00039,7]
[341041190,1730301047143,-236.68866776,0.00039,7]
[341041192,1730301047155,-151.68723367,0.00039,7]
[341041195,1730301047167,-10000.0,0.000392,30]
[341041197,1730301047178,-2904.8879,0.000392,120]
[341041199,1730301047194,-151.0,0.00039274,7]
[341041201,1730301047206,-151.0,0.00039274,7]
[341041204,1730301047218,-973.46359567,0.00039274,7]
[341041206,1730301047233,-151.0,0.00039548,7]
[341041208,1730301047244,-151.0,0.00039548,7]
[341041210,1730301047255,-12160.0,0.0003955,3]
[341041212,1730301047264,-1000.0,0.00039613,5]
[341041214,1730301047275,-1000.0,0.00039613,5]
[341041217,1730301047286,-972.37561094,0.00039716,2]
[341041219,1730301047296,-329.45423928,0.00039761,27]
[341041221,1730301047306,-151.0,0.000398,15]
[341041223,1730301047316,-163.373955,0.00039822,7]
[341041225,1730301047328,-301.8909078,0.00039822,7]
[341041227,1730301047341,-151.0,0.00039863,120]
[341041229,1730301047352,-166.948813,0.0003987,2]
[341041232,1730301047364,-1466.89386072,0.00039897,15]
[341041234,1730301047375,-40238.17425489,0.0003999,120]
[341041238,1730301047408,161.0,0.00033,2]
[341042757,1730301063272,4075.6948903,0.00032876,2]
[341042760,1730301063299,924.3051097,0.00032876,2]
[341045448,1730301313098,34775.7704343,0.0001,2]
[341045449,1730301313158,67213.9027693,0.0001,2]
[341045452,1730301408166,204.992846,0.00013973,2]
[341045472,1730301944450,161.0191544,0.00013973,2]
[341045477,1730302102040,214.33852283,0.000123,2]
[341045478,1730302126647,21196.53525692,0.0001,2]
[341045493,1730302171152,-204.992846,0.00020447,2]
[341045494,1730302171174,-618.65,0.0002061,2]
[341045495,1730302171197,-204.992846,0.00026921,2]
[341045496,1730302171218,-150.40594407,0.00029,2]
[341045497,1730302171243,-151.0,0.0003,120]
[341045498,1730302171266,-190.769403,0.00030212,2]
[341045499,1730302171289,-166.666666,0.00030309,2]
[341045500,1730302171310,-373.0,0.00030539,2]
[341045501,1730302171333,-300.0,0.00030539,2]
[341045502,1730302171354,-4105.12374093,0.0003054,2]
[341045546,1730302232664,-13473.81870537,0.0003054,2]
[341045549,1730302232676,-166.24896941,0.00030894,2]
[341045551,1730302232686,-159.65184,0.00030994,2]
[341045553,1730302232695,-151.0,0.00031397,120]
[341045555,1730302232705,-48.80795577,0.00032795,120]
[341045558,1730302232726,-102.19204423,0.00032795,120]
[341045560,1730302232735,-500.0,0.00032875,5]
[341045562,1730302232747,-500.0,0.00032875,5]
[341045564,1730302232757,-500.0,0.00032876,5]